bitfinex/quotes_ETHUSD_20240719
["timestamp","ask_amount","ask_price","bid_price","bid_amount"]
[1721425546662,2.5558,3521.4,3521.3,0.04417623]
[1721425546847,5.611953,3521.4,3521.3,0.04417623]
[1721425547042,2.55588,3521.3,3520.9,7.39]
[1721425547244,3.60194,3521.2,3520.9,7.39]
[1721425548668,3.60194,3521.2,3520.5,2.55645]
[1721425548979,3.60194,3521.2,3520.6,2.4683151]
[1721425549227,2.55594,3521.2,3520.7,0.98732604]
[1721425549351,2.55594,3521.2,3520.6,2.87058605]
[1721425550261,2.55602,3521.1,3520.6,2.87058605]
[1721425552442,2.55602,3521.1,3520.7,0.04447907]
[1721425552866,3.60202,3521.1,3520.5,2.55645]
[1721425553174,3.60202,3521.1,3520.6,0.9873274]
[1721425553383,3.60202,3521.1,3520.7,0.04447907]
[1721425553682,3.60202,3521.1,3520.5,2.55645]
[1721425553683,2.55609,3521.0,3520.5,2.55645]
[1721425553883,2.55609,3521.0,3520.8,0.04443406]
[1721425554085,2.55609,3521.0,3520.5,2.55645]
[1721425554375,2.55609,3521.0,3520.6,0.98732964]
[1721425554583,2.55609,3521.0,3520.7,0.04447907]
[1721425554783,2.55609,3521.0,3520.5,2.55645]
[1721425554950,2.55609,3521.0,3520.6,1.03187026]
[1721425555295,2.55609,3521.0,3520.6,0.0445409]
[1721425558409,2.55609,3521.0,3520.6,1.35827861]
[1721425559339,2.55609,3521.0,3520.6,0.0445409]
[1721425562421,2.55609,3521.0,3520.4,7.39]
[1721425562628,2.55609,3521.0,3520.7,0.04451754]
[1721425562797,2.55609,3521.0,3520.4,7.39]
[1721425563000,2.55609,3521.0,3520.8,0.04447254]
[1721425563313,2.55609,3521.0,3520.4,9.94652]
[1721425563639,2.55609,3521.0,3520.5,2.46832298]
[1721425563845,2.55609,3521.0,3520.6,0.04456254]
[1721425564341,2.55609,3521.0,3520.4,9.94652]
[1721425564541,2.55609,3521.0,3520.7,0.04451834]
[1721425564845,2.55609,3521.0,3520.5,0.04460835]
[1721425565049,2.55609,3521.0,3520.8,0.04447334]
[1721425565201,2.55609,3521.0,3520.4,9.94652]
[1721425565402,2.55609,3521.0,3520.9,0.04442834]
[1721425565601,2.55609,3521.0,3520.4,9.94652]
[1721425565826,2.55609,3521.0,3520.9,0.04442834]
[1721425566629,2.55609,3521.0,3520.9,0.04442834]
[1721425566857,2.55609,3521.0,3520.4,9.94652]
[1721425567001,2.55609,3521.0,3520.9,0.04443635]
[1721425567204,2.55609,3521.0,3520.4,9.94652]
[1721425567523,2.55609,3521.0,3520.9,0.04443635]
[1721425567731,2.55609,3521.0,3520.4,9.94652]
[1721425567896,2.55609,3521.0,3520.9,0.04443635]
[1721425568096,2.55609,3521.0,3520.4,9.94652]
[1721425568302,2.55609,3521.0,3520.9,0.04443555]
[1721425568508,2.55609,3521.0,3520.4,9.94652]
[1721425568746,2.55609,3521.0,3520.9,0.04443555]
[1721425569204,2.55609,3521.0,3520.4,9.94652]
[1721425569404,2.55609,3521.0,3520.9,0.04443555]
[1721425569719,2.55609,3521.0,3520.4,9.94652]
[1721425570401,2.55609,3521.0,3520.5,0.04461717]
[1721425578518,2.3903,3520.9,3520.5,0.04461717]
[1721425583952,2.3903,3520.9,3520.5,2.60106717]
[1721425588951,8.46704,3521.2,3520.6,0.51576472]
[1721425589286,2.55603,3521.1,3520.7,0.04453839]
[1721425589578,2.55603,3521.1,3520.5,2.55645]
[1721425589996,2.55603,3521.1,3520.6,0.0445834]
[1721425593695,2.3091,3521.0,3520.6,0.0445834]
[1721425605173,4.8652,3521.0,3520.6,0.0445834]
[1721425616316,4.8652,3521.0,3520.7,0.98740291]
[1721425616493,4.8652,3521.0,3520.6,0.0445834]
[1721425616814,4.8652,3521.0,3520.8,0.04449659]
[1721425617004,4.8652,3521.0,3520.7,0.04454159]
[1721425617308,4.8652,3521.0,3520.5,2.55645]
[1721425617516,4.8652,3521.0,3520.8,0.04449659]
[1721425617711,4.8652,3521.0,3520.5,2.55645]
[1721425617916,4.8652,3521.0,3520.9,0.04445159]
[1721425618114,4.8652,3521.0,3520.5,2.55645]
[1721425618425,4.8652,3521.0,3520.9,0.04445159]
[1721425618581,4.8652,3521.0,3520.5,2.55645]
[1721425618886,4.8652,3521.0,3520.6,2.51310246]
[1721425619225,4.8652,3521.0,3520.6,0.0445866]
[1721425623440,4.8652,3521.0,3520.4,0.58980618]
[1721425623736,4.8652,3521.0,3520.5,2.51315036]
[1721425623902,4.8652,3521.0,3520.6,2.46851555]
[1721425624104,4.8652,3521.0,3520.5,0.04463481]
[1721425624304,4.8652,3521.0,3520.7,0.0445448]
[1721425624529,4.8652,3521.0,3520.6,0.0445898]
[1721425624836,4.8652,3521.0,3520.7,0.0445448]
[1721425625133,4.8652,3521.0,3520.4,3.14631618]
[1721425625351,4.8652,3521.0,3520.8,0.0444998]
[1721425625501,4.8652,3521.0,3520.4,3.14631618]
[1721425625695,4.8652,3521.0,3520.9,0.0444548]
[1721425625901,5.711914,3521.0,3520.4,3.14631618]
[1721425626127,4.8652,3521.0,3520.9,0.0444548]
[1721425626600,4.8652,3521.0,3520.4,3.14631618]
[1721425626801,4.8652,3521.0,3520.5,2.46851638]
[1721425627000,4.8652,3521.0,3520.6,2.46851638]
[1721425627236,4.8652,3521.0,3520.6,0.0445898]
[1721425627645,4.8652,3521.0,3520.4,3.14631618]
[1721425627942,4.8652,3521.0,3520.5,2.46851642]
[1721425628237,4.8652,3521.0,3520.6,2.46851642]
[1721425628530,4.8652,3521.0,3520.7,0.0445448]
[1721425629034,4.8652,3521.0,3520.8,0.0444998]
[1721425629335,4.8652,3521.0,3520.4,3.14631618]
[1721425629537,4.8652,3521.0,3520.9,0.0444548]
[1721425629747,2.4771,3520.9,3520.4,0.58980618]
[1721425630032,0.846714,3521.0,3520.5,0.98740922]
[1721425630033,5.03348,3520.6,3520.5,0.98740922]
[1721425630397,5.03348,3520.6,3520.1,7.97980618]
[1721425630602,5.03348,3520.6,3520.2,2.4687521]
[1721425630809,5.03348,3520.6,3520.1,7.97980618]
[1721425631140,5.03348,3520.6,3520.2,3.05841606]
[1721425631304,5.03348,3520.6,3520.3,2.46860988]
[1721425631503,5.03348,3520.6,3520.4,2.46860988]
[1721425631803,5.03348,3520.6,3520.2,0.58980618]
[1721425632005,5.03348,3520.6,3520.3,2.46861428]
[1721425632235,5.03348,3520.6,3520.4,2.46861428]
[1721425632416,5.03348,3520.6,3520.2,0.58980618]
[1721425632619,5.03348,3520.6,3520.3,2.46861552]
[1721425632821,5.03348,3520.6,3520.4,2.46861552]
[1721425633009,5.03348,3520.6,3520.2,0.58980618]
[1721425633209,5.03348,3520.6,3520.3,2.46861627]
[1721425633509,5.03348,3520.6,3520.4,2.46861627]
[1721425633709,5.03348,3520.6,3520.2,0.58980618]
[1721425633906,5.03348,3520.6,3520.3,2.46861586]
[1721425634123,5.03348,3520.6,3520.2,0.58980618]
[1721425634310,5.03348,3520.6,3520.3,2.46861608]
[1721425634533,5.03348,3520.6,3520.4,2.46861608]
[1721425634737,5.03348,3520.6,3520.2,0.58980618]
[1721425634933,5.03348,3520.6,3520.3,2.46861558]
[1721425635247,5.03348,3520.6,3520.4,2.46861558]
[1721425635547,5.03348,3520.6,3520.2,0.58980618]
[1721425635710,5.03348,3520.6,3520.3,2.46861525]
[1721425636009,5.03348,3520.6,3520.4,0.9874461]
[1721425636209,5.03348,3520.6,3520.2,0.58980618]
[1721425636424,5.03348,3520.6,3520.3,2.46861546]
[1721425636628,5.03348,3520.6,3520.4,0.98744618]
[1721425636913,5.03348,3520.6,3520.2,0.58980618]
[1721425637143,5.03348,3520.6,3520.3,2.46861566]
[1721425637326,5.03348,3520.6,3520.4,0.98744626]
[1721425637527,5.03348,3520.6,3520.2,0.58980618]
[1721425637828,5.03348,3520.6,3520.3,2.46861603]
[1721425638029,5.03348,3520.6,3520.4,0.98744641]
[1721425638235,5.03348,3520.6,3520.2,0.58980618]
[1721425638440,5.03348,3520.6,3520.3,2.46861585]
[1721425638657,5.03348,3520.6,3520.4,0.98744634]
[1721425638860,5.03348,3520.6,3520.2,0.58980618]
[1721425639066,5.03348,3520.6,3520.3,2.46861628]
[1721425639383,5.03348,3520.6,3520.4,0.98744651]
[1721425639530,5.03348,3520.6,3520.2,0.58980618]
[1721425639731,5.03348,3520.6,3520.3,2.46861508]
[1721425640053,5.03348,3520.6,3520.4,0.98744603]
[1721425640226,5.03348,3520.6,3520.2,0.58980618]
[1721425640549,5.03348,3520.6,3520.3,2.46861622]
[1721425640761,5.03348,3520.6,3520.2,0.58980618]
[1721425640921,5.03348,3520.6,3520.3,2.4686156]
[1721425641121,5.03348,3520.6,3520.4,0.98744623]
[1721425641378,5.03348,3520.6,3520.2,0.58980618]
[1721425641528,5.03348,3520.6,3520.3,2.46861561]
[1721425641859,5.03348,3520.6,3520.4,0.98744624]
[1721425642163,5.03348,3520.6,3520.2,0.58980618]
[1721425642370,5.03348,3520.6,3520.5,0.04076833]
[1721425642853,5.03348,3520.6,3520.2,0.58980618]
[1721425643053,5.03348,3520.6,3520.3,2.50947468]
[1721425643371,5.03348,3520.6,3520.4,0.98744653]
[1721425643572,5.03348,3520.6,3520.3,0.04085836]
[1721425643864,5.03348,3520.6,3520.5,0.04076833]
[1721425644047,5.03348,3520.6,3520.4,0.04081334]
[1721425644247,5.03348,3520.6,3520.5,0.04076833]
[1721425644552,5.03348,3520.6,3520.2,0.58980618]
[1721425644746,5.03348,3520.6,3520.5,0.04076833]
[1721425645070,5.03348,3520.6,3520.2,0.58980618]
[1721425645372,5.03348,3520.6,3520.3,2.46861601]
[1721425645528,5.03348,3520.6,3520.4,0.9874464]
[1721425645722,5.03348,3520.6,3520.3,0.04085836]
[1721425646059,5.03348,3520.6,3520.4,0.98744632]
[1721425646359,5.03348,3520.6,3520.4,0.04081574]
[1721425646726,5.03348,3520.6,3520.1,0.58980618]
[1721425646922,5.03348,3520.6,3520.5,0.04077073]
[1721425647275,2.4727,3520.5,3520.1,0.58980618]
[1721425647436,2.4727,3520.5,3520.2,2.46862458]
[1721425647642,2.4727,3520.5,3520.0,2.55676]
[1721425650176,2.55669,3520.2,3519.7,0.58980618]
[1721425650479,2.4263,3520.1,3519.8,2.468943]
[1721425650763,2.4263,3520.1,3519.7,3.0]
[1721425651062,2.4263,3520.1,3519.8,0.98758938]
[1721425651255,2.4263,3520.1,3519.7,3.0]
[1721425651457,2.4263,3520.1,3519.8,0.98758902]
[1721425651633,2.4263,3520.1,3519.7,3.0]
[1721425651834,2.4263,3520.1,3519.8,0.987589]
[1721425652053,2.4263,3520.1,3519.8,2.55695]
[1721425652336,4.9827,3520.6,3520.0,2.55676]
[1721425653673,6.0287,3520.6,3520.0,2.55676]
[1721425655748,6.0287,3520.6,3519.8,3.42733362]
[1721425656145,6.0287,3520.6,3519.6,2.55709]
[1721425656146,2.4263,3520.1,3519.6,2.55709]
[1721425657453,2.4263,3520.1,3519.7,0.03985421]
[1721425672679,2.4263,3520.1,3519.9,2.55688]
[1721425672873,2.4263,3520.1,3519.7,0.03985421]
[1721425673073,2.4263,3520.1,3520.0,0.03927593]
[1721425673274,2.4263,3520.1,3519.6,2.55707]
[1721425673810,2.4263,3520.1,3519.7,0.039411]
[1721425678594,3.4723,3520.1,3519.7,0.039411]
[1721425683015,2.3067,3520.0,3519.7,0.039411]
[1721425688023,0.86570797,3520.0,3519.7,0.039411]
[1721425693224,3.42256797,3520.0,3519.7,0.039411]
[1721425693524,3.42256797,3520.0,3519.4,3.14703618]
[1721425693722,3.42256797,3520.0,3519.5,4.14404165]
[1721425693926,3.42256797,3520.0,3519.6,2.4691071]
[1721425694241,3.42256797,3520.0,3519.7,0.0394535]
[1721425694760,3.42256797,3520.0,3519.8,0.03840848]
[1721425695063,3.42256797,3520.0,3519.5,1.67493455]
[1721425695228,3.42256797,3520.0,3519.9,0.03836345]
[1721425695425,2.3046,3519.9,3519.6,1.22119707]
[1721425697251,5.11344,3520.2,3519.6,1.22119707]
[1721425697427,2.3046,3519.9,3519.6,1.22119707]
[1721425697627,2.3046,3519.9,3519.4,0.58980618]
[1721425697628,2.55713,3519.6,3519.4,0.58980618]
[1721425697827,2.3046,3519.9,3519.1,3.58980618]
[1721425697828,2.55701,3519.8,3519.1,3.58980618]
[1721425698051,2.3046,3519.7,3519.2,2.4694714]
[1721425698252,2.3046,3519.7,3519.3,0.98778856]
[1721425698253,4.86163,3519.7,3519.3,0.98778856]
[1721425698468,2.3046,3520.0,3519.2,4.88499]
[1721425698620,4.86142,3520.0,3519.3,3.606637]
[1721425698819,4.86142,3520.0,3519.4,2.46936752]
[1721425699055,5.90742,3520.0,3519.5,0.98774048]
[1721425699240,5.90742,3520.0,3519.3,3.6945958]
[1721425699764,5.90742,3520.0,3519.4,2.46934655]
[1721425699921,5.90742,3520.0,3519.3,3.6945958]
[1721425699922,5.90742,3520.0,3519.5,3.57423979]
[1721425700123,5.90742,3520.0,3519.5,1.10489324]
[1721425702317,5.90742,3520.0,3519.6,0.03731747]
[1721425707796,3.60282,3520.0,3519.6,0.03731747]
[1721425708000,2.4988,3519.9,3519.6,0.03731747]
[1721425708294,2.557,3519.8,3519.3,0.58980618]
[1721425708460,2.557,3519.8,3519.7,0.03726923]
[1721425708661,2.557,3519.8,3519.3,0.58980618]
[1721425708990,2.557,3519.8,3519.4,2.46936755]
[1721425709194,2.557,3519.8,3519.5,0.98774702]
[1721425709416,2.3973,3519.5,3519.4,0.03740433]
[1721425709717,4.95491,3518.9,3518.5,0.58980618]
[1721425709856,1.046,3518.7,3518.3,0.58980618]
[1721425710166,1.046,3518.7,3518.0,3.14804618]
[1721425710374,3.60378,3518.7,3518.1,3.12920406]
[1721425710600,3.60378,3518.7,3518.2,0.988035]
[1721425710910,3.60378,3518.7,3518.1,0.65911655]
[1721425711192,2.558,3518.4,3517.6,2.55854]
[1721425711393,2.3973,3518.2,3517.6,2.55854]
[1721425712198,1.046,3518.1,3517.4,7.39]
[1721425712385,1.046,3517.7,3517.4,7.39]
[1721425712584,1.046,3517.9,3517.4,8.14407416]
[1721425712785,1.046,3517.9,3517.4,7.39]
[1721425713182,2.55843,3517.8,3517.4,7.39]
[1721425714005,6.13478828,3517.7,3517.3,0.1507416]
[1721425714395,1.046,3517.5,3517.3,0.1507416]
[1721425716734,3.60459,3517.6,3517.3,0.1507416]
[1721425716907,4.214199,3517.6,3517.3,0.1507416]
[1721425717248,1.046,3517.4,3517.3,0.1507416]
[1721425720093,0.03878828,3517.5,3517.3,0.1507416]
[1721425720417,1.046,3517.4,3517.3,0.1507416]
[1721425722622,3.6047,3517.4,3517.3,0.1507416]
[1721425722817,4.56974401,3517.4,3517.3,0.1507416]
[1721425723018,7.12844401,3517.4,3517.3,0.1507416]
[1721425723528,7.08965573,3517.4,3517.3,0.1507416]
[1721425725243,6.04365573,3517.4,3517.3,0.1507416]
[1721425725742,7.08965573,3517.4,3517.3,0.1507416]
[1721425728416,10.08965573,3517.4,3517.3,0.1507416]
[1721425729153,9.04365573,3517.4,3517.3,0.1507416]
[1721425730239,3.0,3517.4,3517.3,0.1507416]
[1721425730444,8.00944,3517.5,3517.3,0.1507416]
[1721425732760,1.046,3517.4,3517.3,0.1507416]
[1721425732960,4.046,3517.4,3517.3,0.1507416]
[1721425736066,6.6047,3517.4,3517.3,0.1507416]
[1721425736278,2.55864,3517.5,3517.3,2.4540416]
[1721425736575,2.55864,3517.5,3517.3,0.1507416]
[1721425736576,1.046,3517.4,3517.3,0.1507416]
[1721425743471,3.6047,3517.4,3517.3,0.1507416]
[1721425745769,11.882411,3517.4,3517.3,0.1507416]
[1721425745970,15.432411,3517.4,3517.3,0.1507416]
[1721425748395,12.323711,3517.4,3517.3,0.12547469]
[1721425748603,10.022411,3517.4,3517.3,0.12547469]
[1721425750662,8.976411,3517.4,3517.3,0.12547469]
[1721425751302,10.022411,3517.4,3517.3,0.12547469]
[1721425751903,6.1634,3517.4,3517.3,0.12547469]
[1721425752997,3.6047,3517.4,3517.3,0.12547469]
[1721425754345,7.4577,3517.4,3517.3,0.12547469]
[1721425754494,11.5037,3517.4,3517.3,0.12547469]
[1721425755133,14.6124,3517.4,3517.3,0.12547469]
[1721425755426,16.11821402,3517.4,3517.3,0.12547469]
[1721425764412,13.55951402,3517.4,3517.3,0.12547469]
[1721425764605,10.66921402,3517.4,3517.3,0.12547469]
[1721425765530,9.1634,3517.4,3517.3,0.12547469]
[1721425766631,6.1634,3517.4,3517.3,0.12547469]
[1721425775248,6.30316086,3517.4,3517.3,0.12547469]
[1721425783034,6.1634,3517.4,3517.3,0.12547469]
[1721425784866,2.5587,3517.4,3517.3,0.12547469]
[1721425785090,3.6047,3517.4,3517.3,0.12547469]
[1721425786993,2.5587,3517.4,3517.3,0.12547469]
[1721425787151,3.6047,3517.4,3517.3,0.12547469]
[1721425787579,3.6047,3517.4,3517.3,0.15944718]
[1721425789543,2.5587,3517.4,3517.3,0.15944718]
[1721425789748,3.6047,3517.4,3517.3,0.15944718]
[1721425794713,2.5587,3517.4,3517.3,0.15944718]
[1721425795020,3.6047,3517.4,3517.3,0.15944718]
[1721425795399,3.6047,3517.4,3517.3,0.12547469]
[1721425805211,2.5587,3517.4,3517.3,0.12547469]
[1721425805420,3.6047,3517.4,3517.3,0.12547469]
[1721425807725,2.5587,3517.4,3517.3,0.12547469]
[1721425807895,3.6047,3517.4,3517.3,0.12547469]
[1721425823113,2.5587,3517.4,3517.3,0.12547469]
[1721425823314,3.6047,3517.4,3517.3,0.12547469]
[1721425824655,2.5587,3517.4,3517.3,0.12547469]
[1721425824953,3.6047,3517.4,3517.3,0.12547469]
[1721425827254,2.5587,3517.4,3517.3,0.12547469]
[1721425827571,3.6047,3517.4,3517.3,0.12547469]
[1721425830758,6.103,3517.4,3517.3,0.12547469]
[1721425830966,3.6047,3517.4,3517.3,0.12547469]
[1721425831759,3.6047,3517.4,3517.3,0.15623243]
[1721425832261,3.6047,3517.4,3517.3,0.19195074]
[1721425839576,3.6047,3517.4,3517.3,0.12547469]
[1721425849865,4.0504195,3517.4,3517.3,0.12547469]
[1721425850393,4.0504195,3517.4,3517.3,0.19198548]
[1721425850977,1.4917195,3517.4,3517.3,0.19198548]
[1721425858287,1.046,3517.4,3517.3,0.19198548]
[1721425871600,9.640449,3517.4,3517.3,0.19198548]
[1721425871811,0.660449,3517.4,3517.3,0.12547469]
[1721425872104,1.046,3517.4,3517.3,0.19198313]
[1721425872885,2.5583,3518.0,3517.3,0.19198313]
[1721425872886,2.2666,3518.3,3517.4,5.03716]
[1721425873222,0.44572514,3518.4,3517.6,2.55855]
[1721425873424,0.76044537,3518.4,3517.7,0.06630427]
[1721425873990,0.76044537,3518.4,3517.7,2.62478427]
[1721425874621,3.76044537,3518.4,3517.7,2.62478427]
[1721425874815,3.44572514,3518.4,3517.8,2.4785]
[1721425875131,1.046,3517.9,3517.8,2.4785]
[1721425875362,0.44572514,3518.4,3517.8,2.4785]
[1721425875526,1.046,3517.9,3517.8,2.4785]
[1721425877164,1.046,3517.9,3517.8,5.03691]
[1721425879346,1.046,3517.9,3517.8,5.796448]
[1721425880231,1.046,3517.9,3517.8,5.03691]
[1721425881069,1.046,3517.9,3517.8,2.55841]
[1721425882562,1.046,3517.9,3517.8,2.62461526]
[1721425886038,1.046,3517.9,3517.8,5.11121526]
[1721425890284,1.046,3517.9,3517.8,2.62461526]
[1721425893547,0.44572514,3518.4,3517.9,2.55831]
[1721425893747,1.046,3518.0,3517.9,2.55831]
[1721425897287,1.046,3518.0,3517.9,2.61824112]
[1721425901867,3.0,3518.6,3518.1,2.55819]
[1721425902070,2.3083,3518.7,3518.1,2.55819]
[1721425902292,1.046,3518.2,3518.1,2.55819]
[1721425912348,1.046,3518.2,3518.1,2.61733171]
[1721425916242,2.4241,3518.9,3518.1,2.83034375]
[1721425916571,2.4241,3519.3,3518.7,2.55774]
[1721425916851,1.046,3518.8,3518.7,2.55774]
[1721425919843,3.4701,3518.8,3518.7,2.55774]
[1721425920030,1.046,3518.8,3518.7,2.55774]
[1721425920228,1.046,3518.8,3518.7,3.069292]
[1721425923279,2.4241,3519.1,3518.7,3.069292]
[1721425923449,5.4241,3519.3,3518.9,2.55758]
[1721425923650,2.4241,3519.3,3518.8,2.55765]
[1721425923852,1.046,3518.9,3518.8,3.069196]
[1721425926106,2.3402,3519.5,3519.0,2.55753]
[1721425927173,2.3402,3519.7,3519.1,0.05857205]
[1721425927371,2.3402,3519.7,3519.1,5.17351205]
[1721425927372,1.046,3519.2,3519.1,5.17351205]
[1721425927610,1.046,3519.2,3519.1,5.99106785]
[1721425930411,1.046,3519.4,3519.3,2.55729]
[1721425930913,1.046,3519.4,3519.3,2.61576994]
[1721425931380,1.046,3519.4,3519.3,5.17308994]
[1721425933819,2.2995,3519.5,3519.4,2.5572]
[1721425934115,1.046,3519.6,3519.4,3.15625257]
[1721425934309,1.046,3519.6,3519.4,3.21459098]
[1721425934708,1.046,3519.6,3519.5,2.55718]
[1721425934897,1.046,3519.6,3519.5,2.61547236]
[1721425949508,1.046,3519.6,3519.5,0.05829236]
[1721425950541,1.046,3519.7,3519.5,0.5755806]
[1721425955229,1.046,3519.7,3519.5,3.1327506]
[1721425956537,1.046,3519.7,3519.5,5.3933506]
[1721425961526,1.046,3519.7,3519.5,3.1327506]
[1721425962834,1.046,3519.7,3519.6,2.5571]
[1721425963151,1.046,3519.7,3519.6,2.6152769]
[1721425963722,1.046,3519.7,3519.6,3.41031641]
[1721425964027,2.4595,3520.5,3520.0,2.55681]
[1721425964211,1.046,3520.3,3520.0,2.55681]
[1721425964411,1.046,3520.3,3520.1,0.05794355]
[1721425974719,1.046,3520.3,3520.2,2.55667]
[1721425975151,1.046,3520.3,3520.2,2.61452571]
[1721425976043,2.3597,3521.0,3520.4,2.55652]
[1721425976243,1.046,3520.6,3520.5,2.55645]
[1721425976642,1.046,3520.6,3520.5,0.05771764]
[1721425977063,1.046,3520.6,3520.4,2.55646]
[1721425977270,1.046,3520.6,3520.5,0.05771764]
[1721425978418,3.4057,3520.6,3520.5,0.05771764]
[1721425979026,5.96208,3520.6,3520.5,0.05771764]
[1721425979463,5.96208,3520.6,3519.4,3.58980618]
[1721425979672,1.046,3520.3,3519.8,2.55689]
[1721425979968,1.046,3520.3,3519.9,2.69592131]
[1721425980179,1.046,3520.5,3519.9,5.25276131]
[1721425981321,2.3597,3520.8,3520.2,2.55661]
[1721425981524,1.046,3520.6,3520.3,0.05774818]
[1721425981737,1.046,3520.6,3520.3,2.61432818]
[1721425982055,1.046,3520.6,3520.4,0.51709382]
[1721425982466,1.046,3520.6,3520.5,0.05765613]
[1721425982973,2.3597,3520.5,3519.6,0.58980618]
[1721425983137,2.3597,3520.5,3519.5,0.88470927]
[1721425983138,2.3597,3520.1,3519.7,0.05802439]
[1721425983326,4.91648,3520.1,3519.7,0.05802439]
[1721425983670,4.91648,3520.1,3519.4,2.55724]
[1721425983969,4.91648,3520.1,3519.5,1.250463]
[1721425984180,1.046,3519.9,3519.6,0.05620101]
[1721425985932,1.046,3519.7,3519.6,0.05620101]
[1721425986163,1.046,3519.7,3519.0,2.55754]
[1721425986371,1.046,3519.7,3519.1,1.04416574]
[1721425986535,1.046,3519.7,3519.2,0.67491119]
[1721425986736,1.046,3519.7,3519.3,0.05633916]
[1721425988864,1.046,3519.9,3519.3,2.61364916]
[1721425989570,3.4057,3520.1,3519.4,2.5572]
[1721425989754,1.046,3520.1,3519.5,0.05629359]
[1721425989961,1.046,3520.1,3519.6,0.75928036]
[1721425990277,1.046,3520.1,3519.7,0.05620149]
[1721425991676,2.2568,3520.4,3519.7,2.61321149]
[1721425991973,1.046,3520.1,3519.7,2.61321149]
[1721425992173,1.046,3520.1,3519.8,0.59295319]
[1721425992376,1.046,3520.1,3519.9,0.05613781]
[1721425993364,2.55646,3520.5,3519.9,0.05613781]
[1721425993365,1.046,3520.3,3519.9,0.05613781]
[1721426003689,3.514,3520.1,3519.9,0.05613781]
[1721426004247,3.514,3520.1,3519.4,2.5572]
[1721426004446,1.046,3519.8,3519.5,0.63793074]
[1721426006461,1.046,3519.8,3519.6,0.9876077]
[1721426006643,1.046,3519.8,3519.5,0.63793074]
[1721426006839,1.046,3519.8,3519.6,0.98760646]
[1721426007039,1.046,3519.8,3519.5,0.63793074]
[1721426007243,1.046,3519.8,3519.6,0.98760616]
[1721426007480,1.046,3519.8,3519.5,0.63793074]
[1721426007782,1.046,3519.8,3519.6,1.36610011]
[1721426007998,1.046,3519.8,3519.6,0.37849369]
[1721426010587,1.046,3519.8,3519.5,0.63793074]
[1721426012300,2.3156,3519.7,3519.5,0.63793074]
[1721426012961,1.046,3519.8,3519.5,0.63793074]
[1721426013400,1.046,3519.8,3519.3,0.58980618]
[1721426013696,1.046,3519.8,3519.1,3.14724618]
[1721426013901,1.046,3519.8,3519.2,2.46923525]
[1721426014060,1.046,3519.8,3519.1,3.14724618]
[1721426014061,1.046,3519.8,3519.3,2.46923525]
[1721426014259,1.046,3519.8,3519.4,2.46923472]
[1721426014496,1.046,3519.8,3519.2,2.55739]
[1721426014702,1.046,3519.8,3519.3,1.3024335]
[1721426014875,1.046,3519.8,3519.3,0.31471962]
[1721426015198,1.046,3519.8,3519.1,2.5574]
[1721426015521,1.046,3519.6,3519.2,0.98773649]
[1721426015684,1.046,3519.6,3519.1,2.5574]
[1721426016014,1.046,3519.6,3519.2,0.98773708]
[1721426016193,1.046,3519.6,3519.1,2.5574]
[1721426016402,1.046,3519.6,3519.2,1.55821752]
[1721426016584,1.046,3519.6,3519.2,0.57047962]
[1721426017101,2.3156,3519.5,3519.2,0.57047962]
[1721426017457,2.3156,3519.5,3519.3,0.05636125]
[1721426018601,2.3156,3519.5,3519.4,0.05443649]
[1721426018912,2.3156,3519.5,3519.1,2.55746]
[1721426019060,2.3156,3519.5,3519.4,0.05443649]
[1721426019565,2.3156,3519.5,3519.0,2.55749]
[1721426019763,2.3156,3519.5,3519.1,3.18289785]
[1721426019970,2.3156,3519.5,3519.1,0.7135432]
[1721426020535,3.3966,3519.8,3519.1,0.05457465]
[1721426020810,3.3966,3519.8,3519.1,2.61203465]
[1721426020963,5.95357,3519.8,3519.1,2.61203465]
[1721426021164,2.55704,3519.7,3519.2,0.98774852]
[1721426021408,3.3966,3519.8,3519.3,0.05448254]
[1721426021409,5.95356,3519.8,3519.3,0.05448254]
[1721426021563,5.95356,3519.8,3519.1,2.55745]
[1721426021779,5.95356,3519.8,3519.2,1.04226956]
[1721426021987,5.95356,3519.8,3519.2,0.05452859]
[1721426022529,3.3966,3519.8,3519.2,0.05452859]
[1721426022695,2.55705,3519.7,3519.2,0.05452859]
[1721426023026,2.55705,3519.7,3519.0,5.59299618]
[1721426023199,2.55705,3519.7,3519.1,2.52393055]
[1721426023402,2.55705,3519.7,3519.2,0.98774236]
[1721426023591,2.55705,3519.7,3519.3,0.05448254]
[1721426023803,2.55705,3519.7,3519.0,3.93904273]
[1721426023990,2.55705,3519.7,3519.1,2.5239264]
[1721426024200,2.55705,3519.7,3519.1,0.05457465]
[1721426024608,2.55705,3519.7,3519.2,0.98774113]
[1721426024802,2.55705,3519.7,3519.3,0.05448807]
[1721426025027,2.55705,3519.7,3519.0,3.34923655]
[1721426025224,2.55705,3519.7,3519.1,2.52393267]
[1721426025382,2.55705,3519.7,3519.2,0.98774099]
[1721426025729,3.3966,3519.8,3519.3,0.05448807]
[1721426025880,2.55709,3519.7,3519.3,0.05448807]
[1721426026077,2.55709,3519.7,3519.0,3.34923655]
[1721426026285,2.55709,3519.7,3519.4,0.05444202]
[1721426026482,5.95362,3519.8,3519.0,5.90670655]
[1721426026719,2.55707,3519.7,3519.5,0.05439597]
[1721426026927,2.55707,3519.7,3519.0,3.34923655]
[1721426027111,2.55707,3519.7,3519.6,0.05434992]
[1721426027623,2.55707,3519.7,3519.1,1.4816105]
[1721426027814,2.55707,3519.7,3519.2,0.05453413]
[1721426028018,2.55707,3519.7,3519.0,5.00324]
[1721426028215,2.55707,3519.7,3519.1,2.52394192]
[1721426028406,2.55707,3519.7,3519.1,0.05458019]
[1721426029031,3.3966,3519.8,3519.1,2.61200019]
[1721426029436,5.95357,3519.8,3519.2,0.9877266]
[1721426029608,5.95357,3519.8,3519.3,0.05448807]
[1721426029937,5.95357,3519.8,3519.1,2.55742]
[1721426030097,5.95357,3519.8,3519.4,0.05444202]